bitfinex/quotes_SOLUSD_20240811
["timestamp","ask_amount","ask_price","bid_price","bid_amount"]
[1723372364766,16.4252,156.3,156.22,65.50196]
[1723372365152,16.4252,156.3,156.22,65.0]
[1723372365378,16.4252,156.3,156.23,0.12549]
[1723372365569,16.4252,156.3,156.23,0.25098]
[1723372365973,16.4252,156.3,156.23,0.12549]
[1723372366466,16.4252,156.3,156.23,0.25098]
[1723372369064,16.4252,156.3,156.23,0.12549]
[1723372369369,16.4252,156.3,156.22,65.0]
[1723372370253,16.4252,156.36,156.23,0.25098]
[1723372370471,16.4252,156.36,156.25,0.12549]
[1723372370780,16.4252,156.36,156.27,0.12549]
[1723372370979,16.4252,156.36,156.29,0.12549]
[1723372371149,16.4252,156.36,156.29,29.06377999]
[1723372371357,16.4252,156.36,156.3,45.0]
[1723372371578,16.4252,156.36,156.31,20.0]
[1723372371753,16.4252,156.36,156.32,45.0]
[1723372372150,7.4385217,156.37,156.33,20.0]
[1723372372379,0.8515217,156.37,156.34,45.0]
[1723372375575,0.8515217,156.37,156.33,20.0]
[1723372375774,0.8515217,156.37,156.3,2.54570489]
[1723372375775,0.8515217,156.37,156.3,22.54570489]
[1723372375982,0.8515217,156.37,156.3,20.0]
[1723372377763,0.8515217,156.37,156.29,8.93828999]
[1723372378083,16.4252,156.35,156.29,8.93828999]
[1723372378280,0.37647,156.34,156.24,17.78659469]
[1723372378885,0.12549,156.33,156.24,8.93828999]
[1723372379880,6.587,156.32,156.24,8.93828999]
[1723372380178,0.50196,156.31,156.2,8.93828999]
[1723372380484,16.4252,156.3,156.2,8.93828999]
[1723372380777,2.10185485,156.29,156.2,8.93828999]
[1723372380984,0.50196,156.29,156.19,2.55223954]
[1723372381286,0.12549,156.27,156.16,8.93828999]
[1723372381460,0.25098,156.27,156.16,8.93828999]
[1723372381655,0.37647,156.27,156.16,8.93828999]
[1723372382171,0.37647,156.27,156.17,20.0]
[1723372382379,0.12549,156.26,156.17,28.93828999]
[1723372382586,0.37647,156.26,156.17,28.93828999]
[1723372382877,16.4252,156.24,156.14,8.8483047]
[1723372383085,1.6003659,156.23,156.14,8.8483047]
[1723372383382,16.4252,156.24,156.14,17.78659469]
[1723372383779,6.87806,156.23,156.09,268.5483047]
[1723372383960,8.47877612,156.23,156.1,8.93828999]
[1723372384162,6.87806,156.23,156.1,8.93828999]
[1723372385082,6.87806,156.23,156.11,20.0]
[1723372385279,6.87806,156.23,156.1,8.93828999]
[1723372385483,4.4808,156.22,156.1,8.93828999]
[1723372385686,0.12549,156.19,156.1,8.93828999]
[1723372385883,30.0793126,156.3,156.1,8.93828999]
[1723372386073,23.0353,156.3,156.12,26.2969]
[1723372386277,23.0353,156.3,156.16,20.0]
[1723372386484,23.0353,156.3,156.17,19.08659469]
[1723372386694,23.0353,156.3,156.18,20.0]
[1723372386872,6.3761,156.3,156.2,0.12549]
[1723372387077,6.3761,156.3,156.22,0.12549]
[1723372387273,6.3761,156.3,156.23,9.58828999]
[1723372387474,6.3761,156.34,156.24,65.0]
[1723372390500,6.3761,156.34,156.25,0.12549]
[1723372392586,6.3761,156.34,156.25,0.25098]
[1723372394470,16.6592,156.35,156.25,0.25098]
[1723372394675,16.6592,156.35,156.26,0.12549]
[1723372394874,16.6592,156.35,156.26,0.25098]
[1723372395088,0.8515217,156.37,156.26,0.25098]
[1723372395494,0.8515217,156.37,156.26,0.12549]
[1723372396199,0.8515217,156.37,156.28,0.12549]
[1723372396382,0.8515217,156.37,156.28,20.50196]
[1723372396587,0.8515217,156.37,156.29,45.0]
[1723372396903,0.8515217,156.37,156.3,20.12549]
[1723372397099,0.8515217,156.37,156.31,45.0]
[1723372399603,0.8515217,156.37,156.33,0.12549]
[1723372399778,6.3761,156.46,156.33,65.25098]
[1723372399983,6.3761,156.46,156.35,0.12549]
[1723372400287,6.3761,156.46,156.35,0.25098]
[1723372400489,6.3761,156.46,156.36,0.12549]
[1723372400786,6.3761,156.46,156.36,0.37647]
[1723372401192,6.3761,156.5,156.37,0.12549]
[1723372401501,6.3761,156.5,156.37,0.25098]
[1723372401796,6.3761,156.5,156.38,0.25098]
[1723372402011,6.3761,156.5,156.39,0.12549]
[1723372402209,6.3761,156.5,156.38,0.25098]
[1723372402418,6.3761,156.5,156.39,0.12549]
[1723372402795,6.3761,156.5,156.39,0.25098]
[1723372403013,6.3761,156.5,156.37,65.0]
[1723372404201,0.50196,156.49,156.37,65.0]
[1723372404591,6.3761,156.5,156.39,0.12549]
[1723372404792,6.3761,156.5,156.39,0.25098]
[1723372404993,6.3761,156.5,156.4,0.12549]
[1723372405207,6.3761,156.5,156.39,0.12549]
[1723372407629,16.78469,156.51,156.39,0.12549]
[1723372408612,0.12549,156.5,156.37,20.0]
[1723372408920,0.50196,156.5,156.35,2.54922155]
[1723372409124,49.97496,156.5,156.34,20.0]
[1723372409291,45.50196,156.5,156.34,20.0]
[1723372409719,0.50196,156.5,156.34,20.0]
[1723372409922,0.50196,156.5,156.34,29.58828999]
[1723372410826,0.50196,156.5,156.36,0.12549]
[1723372411039,0.50196,156.5,156.36,20.25098]
[1723372411205,0.50196,156.5,156.37,45.25098]
[1723372411525,0.50196,156.5,156.38,20.12549]
[1723372411826,0.50196,156.5,156.39,45.0]
[1723372412020,0.50196,156.5,156.4,20.0]
[1723372412199,0.50196,156.5,156.41,45.0]
[1723372412400,0.37647,156.5,156.41,45.0]
[1723372413325,0.37647,156.5,156.41,51.2102]
[1723372413710,0.25098,156.5,156.41,51.2102]
[1723372414319,20.8515217,156.53,156.41,51.2102]
[1723372415908,0.50196,156.52,156.41,51.2102]
[1723372416611,0.50196,156.52,156.42,20.0]
[1723372416817,0.50196,156.52,156.43,45.0]
[1723372418632,0.50196,156.52,156.41,6.2102]
[1723372419135,0.50196,156.52,156.39,2.58524833]
[1723372419305,0.12549,156.47,156.37,22.6899]
[1723372420208,16.63219,156.47,156.37,22.6899]
[1723372420409,0.12549,156.45,156.37,22.6899]
[1723372420708,0.12549,156.45,156.33,22.6899]
[1723372421107,0.12549,156.43,156.33,22.6899]
[1723372421311,45.50196,156.43,156.33,22.6899]
[1723372421805,45.50196,156.43,156.29,23.12984879]
[1723372422005,49.97686,156.43,156.29,22.6899]
[1723372422201,0.12549,156.41,156.29,22.6899]
[1723372422519,49.97746,156.41,156.29,22.6899]
[1723372422827,0.12549,156.39,156.25,31.9923559]
[1723372423032,0.37647,156.39,156.25,22.6899]
[1723372423316,0.12549,156.38,156.25,22.6899]
[1723372423527,0.37647,156.38,156.25,22.6899]
[1723372423712,0.12549,156.37,156.25,22.6899]
[1723372423918,0.37647,156.37,156.25,22.6899]
[1723372424121,0.12549,156.36,156.25,22.6899]
[1723372424429,0.12549,156.35,156.25,22.6899]
[1723372424611,0.37647,156.35,156.25,22.6899]
[1723372425537,0.37647,156.35,156.26,45.0]
[1723372425907,0.12549,156.34,156.23,2.63578559]
[1723372426114,0.12549,156.34,156.21,22.4172]
[1723372426115,0.12549,156.33,156.21,22.4172]
[1723372426318,0.37647,156.33,156.21,29.07494392]
[1723372426833,0.12549,156.32,156.21,29.07494392]
[1723372427019,0.37647,156.32,156.21,29.07494392]
[1723372427334,0.12549,156.36,156.22,20.0]
[1723372427532,45.50196,156.36,156.22,20.0]
[1723372429228,0.50196,156.36,156.22,20.0]
[1723372429434,0.50196,156.36,156.23,45.37647]
[1723372429622,0.50196,156.36,156.24,20.0]
[1723372429823,0.50196,156.36,156.25,45.0]
[1723372430020,0.50196,156.36,156.26,20.0]
[1723372430330,0.50196,156.36,156.27,45.0]
[1723372430838,6.1056,156.37,156.27,45.0]
[1723372431129,15.4463,156.38,156.28,20.0]
[1723372431333,15.4463,156.38,156.29,45.37647]
[1723372431630,6.1056,156.41,156.3,20.0]
[1723372431836,6.1056,156.41,156.31,45.0]
[1723372432010,6.1056,156.41,156.32,20.0]
[1723372432219,6.1056,156.41,156.33,45.0]
[1723372432429,6.1056,156.41,156.34,20.0]
[1723372432630,6.1056,156.41,156.35,45.0]
[1723372435531,6.1056,156.41,156.29,16.07028]
[1723372435532,0.12549,156.4,156.26,9.14952688]
[1723372435769,0.50196,156.4,156.26,9.14952688]
[1723372436244,45.50196,156.4,156.26,6.5979]
[1723372436446,49.97776,156.4,156.26,6.5979]
[1723372436744,0.12549,156.38,156.23,8.6494011]
[1723372437038,45.37647,156.38,156.23,8.6494011]
[1723372437222,0.12549,156.37,156.23,8.6494011]
[1723372437430,0.12549,156.36,156.23,8.6494011]
[1723372437635,0.37647,156.36,156.23,8.6494011]
[1723372437825,0.12549,156.35,156.23,8.6494011]
[1723372438147,0.25098,156.35,156.23,8.6494011]
[1723372438326,0.12549,156.34,156.24,45.0]
[1723372438528,0.25098,156.34,156.23,8.6494011]
[1723372438722,0.12549,156.32,156.23,8.6494011]
[1723372439036,0.25098,156.32,156.23,8.6494011]
[1723372439240,0.25098,156.32,156.24,20.0]
[1723372439753,0.25098,156.32,156.25,45.0]
[1723372439929,0.25098,156.32,156.26,20.0]
[1723372441039,6.35658,156.32,156.21,9.19716477]
[1723372441251,0.12549,156.3,156.18,266.2979]
[1723372441442,0.25098,156.3,156.18,6.5979]
[1723372441645,0.12549,156.29,156.18,6.5979]
[1723372441840,0.12549,156.28,156.18,6.5979]
[1723372442046,0.25098,156.28,156.18,6.5979]
[1723372442247,0.12549,156.3,156.18,15.2473011]
[1723372442422,0.12549,156.29,156.18,6.5979]
[1723372442627,0.25098,156.29,156.18,6.5979]
[1723372442822,0.25098,156.28,156.18,6.5979]
[1723372443340,0.12549,156.27,156.17,25.84306185]
[1723372444055,0.12549,156.27,156.17,10.02376185]
[1723372444352,0.12549,156.27,156.11,2.56862997]
[1723372444353,0.12549,156.23,156.11,2.56862997]
[1723372444654,0.25098,156.23,156.15,10.02826276]
[1723372444950,0.12549,156.23,156.12,8.6494011]
[1723372445158,0.12549,156.23,156.15,10.03113807]
[1723372445725,0.12549,156.23,156.16,65.0]
[1723372447532,0.12549,156.23,156.16,20.0]
[1723372447732,0.50196,156.23,156.16,20.0]
[1723372448141,0.50196,156.23,156.15,10.03113807]
[1723372449155,45.50196,156.23,156.15,10.03113807]
[1723372449838,0.12549,156.21,156.09,6.65551777]
[1723372450041,6.2726,156.2,156.06,259.7]
[1723372450247,6.2726,156.2,156.08,10.03278354]
[1723372450248,45.50196,156.19,156.08,10.03278354]
[1723372450552,0.50196,156.19,156.08,10.03278354]
[1723372451733,0.50196,156.19,156.09,65.0]
[1723372452841,0.37647,156.19,156.09,65.0]
[1723372453361,6.2726,156.2,156.09,65.0]
[1723372453664,6.2726,156.2,156.1,0.25098]
[1723372455262,0.12549,156.19,156.09,67.59730713]
[1723372455470,0.25098,156.19,156.09,67.59730713]
[1723372456046,0.25098,156.19,156.09,65.0]
[1723372456247,0.12549,156.18,156.09,45.0]
[1723372456566,0.12549,156.17,156.09,45.0]
[1723372456745,0.25098,156.17,156.09,45.0]
[1723372457567,0.25098,156.17,156.1,20.0]
[1723372458052,0.25098,156.17,156.08,10.03278354]
[1723372458249,0.12549,156.15,156.0,22.5757]
[1723372458448,0.25098,156.15,156.07,10.03423783]
[1723372458752,0.25098,156.15,156.03,14.02022965]
[1723372458951,0.25098,156.15,156.05,10.03484855]
[1723372459670,0.25098,156.15,156.06,20.0]
[1723372460541,0.25098,156.15,156.07,45.0]
[1723372460742,0.25098,156.15,156.08,20.0]
[1723372463739,0.12549,156.14,156.08,20.0]
[1723372463942,0.12549,156.14,156.05,10.03484855]
[1723372463943,6.6313,156.13,156.05,10.03484855]
[1723372464174,6.6313,156.13,156.06,45.0]
[1723372464473,0.37647,156.12,156.03,9.2847819]
[1723372464776,0.37647,156.12,156.04,10.03753988]
[1723372465472,0.12549,156.1,156.04,10.03753988]
[1723372465675,0.37647,156.1,156.04,10.03753988]
[1723372465968,15.5643,156.11,156.04,10.03753988]
[1723372466458,6.6313,156.13,156.04,10.03753988]
[1723372466459,6.6313,156.13,156.05,20.0]
[1723372466775,15.5643,156.15,156.05,20.0]
[1723372466946,15.5643,156.15,156.06,0.12549]
[1723372467278,15.5643,156.15,156.06,0.37647]
[1723372467567,15.5643,156.15,156.06,45.0]
[1723372467870,0.12549,156.14,156.07,20.0]
[1723372468168,15.5643,156.15,156.08,45.0]
[1723372468371,15.5643,156.15,156.09,20.0]
[1723372468571,15.5643,156.15,156.1,45.0]
[1723372468778,15.5643,156.15,156.11,20.0]
[1723372469358,15.5643,156.19,156.12,45.0]
[1723372469583,15.5643,156.19,156.13,20.0]
[1723372469880,15.5643,156.19,156.14,45.0]
[1723372470273,15.5643,156.19,156.13,20.0]
[1723372470474,15.5643,156.19,156.09,20.0]
[1723372470665,15.5643,156.19,156.1,45.12549]
[1723372470862,15.5643,156.19,156.11,20.0]
[1723372471063,15.5643,156.19,156.12,45.0]
[1723372471382,6.6313,156.21,156.13,20.12549]
[1723372471680,6.6313,156.21,156.14,45.0]
[1723372471865,6.6313,156.21,156.15,20.0]
[1723372472073,6.6313,156.21,156.16,45.0]
[1723372472276,6.6313,156.21,156.17,20.0]
[1723372474463,15.5643,156.23,156.17,20.0]
[1723372474788,15.5643,156.23,156.18,45.0]
[1723372474972,15.5643,156.27,156.19,20.0]
[1723372475169,15.5643,156.27,156.2,45.0]
[1723372475376,15.5643,156.27,156.21,20.0]
[1723372475570,15.5643,156.27,156.22,45.0]
[1723372475766,15.5643,156.27,156.23,20.0]
[1723372478169,15.5643,156.27,156.17,2.62308052]
[1723372478371,15.5643,156.27,156.16,0.25098]
[1723372478587,15.5643,156.27,156.16,45.25098]
[1723372478803,15.5643,156.27,156.17,20.0]
[1723372479171,15.5643,156.27,156.15,20.0]
[1723372479400,0.12549,156.26,156.15,20.0]
[1723372479593,0.25098,156.26,156.15,20.0]
[1723372479895,0.25098,156.26,156.15,27.78273443]
[1723372480078,0.25098,156.26,156.16,45.12549]
[1723372480283,0.25098,156.26,156.17,20.0]
[1723372480473,0.25098,156.26,156.18,45.0]
[1723372480675,0.25098,156.26,156.19,20.0]
[1723372481390,15.5643,156.27,156.19,20.0]
[1723372481591,15.5643,156.27,156.2,45.0]
[1723372481792,15.5643,156.27,156.21,20.0]
[1723372482186,0.25098,156.26,156.21,20.0]
[1723372482492,0.25098,156.26,156.15,7.78273443]
[1723372482799,0.12549,156.24,156.12,14.81281526]
[1723372482974,0.25098,156.24,156.13,7.78273443]
[1723372484299,0.25098,156.24,156.14,20.0]
[1723372484899,0.25098,156.24,156.15,45.0]
[1723372485201,0.25098,156.24,156.16,20.0]
[1723372485399,0.25098,156.24,156.17,45.0]
[1723372485596,0.25098,156.24,156.18,20.0]
[1723372486089,0.12549,156.23,156.18,20.0]
[1723372486290,0.25098,156.23,156.15,20.0]
[1723372486499,0.25098,156.23,156.16,45.0]
[1723372486704,0.25098,156.23,156.17,20.0]
[1723372488079,0.12549,156.22,156.17,20.0]
[1723372488281,0.25098,156.22,156.15,20.0]
[1723372489305,0.12549,156.23,156.16,45.0]
[1723372489581,0.12549,156.23,156.17,20.0]
[1723372490608,0.25098,156.24,156.17,20.0]
[1723372490904,15.5643,156.27,156.17,20.0]
[1723372491117,15.5643,156.27,156.18,45.0]
[1723372491281,15.5643,156.27,156.19,20.0]
[1723372491485,15.5643,156.27,156.2,45.0]
[1723372491687,15.5643,156.27,156.21,20.0]
[1723372492411,0.12549,156.26,156.21,20.0]
[1723372492578,0.37647,156.26,156.13,20.12549]
[1723372492893,0.37647,156.26,156.14,45.37647]
[1723372493085,0.37647,156.26,156.15,20.0]
[1723372493284,0.37647,156.26,156.16,45.0]
[1723372493485,0.37647,156.26,156.17,20.0]
[1723372493686,0.37647,156.26,156.18,45.0]
[1723372493893,0.12549,156.25,156.19,20.0]
[1723372494105,0.37647,156.25,156.17,20.0]
[1723372494414,0.25098,156.25,156.17,20.0]
[1723372494708,0.12549,156.26,156.14,20.0]
[1723372494898,0.12549,156.26,156.15,8.15920443]
[1723372495104,0.37647,156.26,156.16,65.0]
[1723372496697,0.12549,156.25,156.16,65.0]
[1723372497718,0.12549,156.25,156.16,45.0]
[1723372498219,0.12549,156.25,156.15,7.78273443]
[1723372498711,0.12549,156.25,156.12,17.3538813]
[1723372499084,0.12549,156.25,156.13,20.0]
[1723372499291,0.12549,156.25,156.13,27.78273443]
[1723372499910,0.12549,156.25,156.14,7.78273443]
[1723372500114,0.12549,156.25,156.15,20.0]
[1723372501209,0.12549,156.25,156.16,45.0]
[1723372501509,0.12549,156.25,156.17,20.0]
[1723372503290,0.12549,156.25,156.16,45.0]
[1723372503291,0.12549,156.22,156.14,7.78273443]
[1723372503491,0.50196,156.22,156.09,14.42786516]
[1723372504300,0.50196,156.22,156.09,17.02546779]
[1723372505201,0.50196,156.22,156.1,45.0]
[1723372505429,0.50196,156.22,156.1,52.78273443]
[1723372505589,0.50196,156.22,156.11,20.0]
[1723372505796,0.50196,156.22,156.12,45.0]
[1723372505994,0.50196,156.22,156.13,20.0]
[1723372506298,0.50196,156.22,156.14,45.0]
[1723372506514,0.50196,156.22,156.15,20.0]
[1723372507032,0.50196,156.22,156.12,20.0]
[1723372507233,0.50196,156.22,156.13,45.0]
[1723372507404,0.50196,156.22,156.14,20.0]
[1723372509102,0.50196,156.22,156.1,20.0]
[1723372509301,16.1884,156.19,156.1,20.0]
[1723372509511,16.1884,156.19,156.09,9.24273336]
[1723372509512,0.50196,156.18,156.09,9.24273336]
[1723372509706,0.50196,156.18,156.09,2.59760263]
[1723372509920,16.1884,156.19,156.08,259.7]
[1723372510225,16.1884,156.19,156.1,15.3828]
[1723372510431,16.1884,156.19,156.11,22.30884643]
[1723372510797,16.1884,156.19,156.13,0.12549]
[1723372510997,16.1884,156.19,156.13,0.37647]
[1723372511808,16.1884,156.19,156.12,20.0]
[1723372513020,16.1884,156.19,156.12,27.78273443]
[1723372513207,16.1884,156.19,156.13,45.12549]
[1723372513516,16.1884,156.19,156.14,20.0]
[1723372513700,16.1884,156.19,156.15,45.0]
[1723372513906,16.1884,156.19,156.16,20.0]
[1723372514212,16.1884,156.19,156.17,45.0]
[1723372514622,6.1285,156.21,156.17,45.0]
[1723372514831,6.1285,156.21,156.16,20.0]
[1723372515030,6.1285,156.21,156.13,20.0]
[1723372515232,6.1285,156.21,156.14,45.0]
[1723372515532,6.1285,156.21,156.15,20.0]
[1723372515840,6.1285,156.21,156.16,45.0]
[1723372516020,6.1285,156.21,156.15,20.0]
[1723372516227,6.1285,156.21,156.13,20.0]
[1723372516425,6.1285,156.21,156.12,22.59862009]
[1723372517443,6.1285,156.21,156.13,45.0]
[1723372517609,6.1285,156.21,156.14,20.0]
[1723372518035,0.12549,156.2,156.14,20.0]
[1723372518209,0.37647,156.2,156.14,20.0]
[1723372521939,0.37647,156.2,156.11,6.28360722]
[1723372522128,0.37647,156.2,156.08,7.78273443]
[1723372522129,0.12549,156.18,156.08,7.78273443]
[1723372522329,0.12549,156.18,156.09,7.69218447]
[1723372522330,1.97759675,156.18,156.09,7.69218447]
[1723372522533,0.12549,156.17,156.09,7.69218447]
[1723372522723,0.12549,156.16,156.09,7.69218447]
[1723372522911,0.25098,156.16,156.09,7.69218447]
[1723372523441,0.25098,156.16,156.1,20.0]
[1723372523614,0.25098,156.16,156.08,7.78273443]
[1723372523931,0.25098,156.16,156.06,6.28360722]
[1723372524137,0.25098,156.16,156.07,7.69334873]
[1723372525344,6.39859,156.15,156.08,65.0]
[1723372525732,0.25098,156.14,156.08,20.0]
[1723372525914,0.25098,156.14,156.07,20.0]
[1723372526542,15.9284,156.13,156.06,10.03343381]
[1723372526743,15.9284,156.13,156.07,52.6932742]
[1723372526940,15.9284,156.13,156.07,45.0]
[1723372527141,0.25098,156.12,156.06,10.03343381]
[1723372527319,0.25098,156.12,156.03,7.76279081]
[1723372527519,0.25098,156.12,156.05,10.03586124]
[1723372529047,16.05389,156.13,156.05,10.03586124]
[1723372529347,15.9284,156.13,156.06,45.0]
[1723372529746,15.9284,156.13,156.07,20.0]
[1723372530432,0.12549,156.12,156.05,10.03586124]
[1723372530636,0.50196,156.12,156.05,10.03586124]
[1723372530837,0.50196,156.12,156.06,20.0]
[1723372533143,0.50196,156.12,156.05,10.03586124]
[1723372533144,0.12549,156.1,156.05,10.03586124]
[1723372533371,15.9284,156.09,155.99,7.78273443]
[1723372533540,15.9284,156.09,156.04,10.03752086]
[1723372533730,15.9284,156.09,155.99,10.43588344]
[1723372534750,15.9284,156.09,156.01,10.03857224]
[1723372534926,0.12549,156.08,156.02,65.0]
[1723372535126,0.25098,156.08,156.02,20.0]
[1723372545758,0.12549,156.07,156.02,20.0]
[1723372545945,0.12549,156.06,156.01,10.03857224]
[1723372546145,0.25098,156.06,156.01,10.03857224]
[1723372551061,0.12549,156.05,155.98,0.8515217]
[1723372551359,0.12549,156.05,155.99,10.03988737]
[1723372551360,0.12549,156.04,155.99,10.03988737]
[1723372551543,0.25098,156.04,155.99,10.03988737]
[1723372553454,0.12549,156.07,155.99,10.03988737]
[1723372553657,0.12549,156.08,155.99,10.03988737]
[1723372553867,15.9284,156.09,156.0,65.0]
[1723372554762,0.12549,156.08,156.0,65.0]
[1723372554955,0.37647,156.08,156.0,65.0]
[1723372558761,0.37647,156.08,156.0,20.0]
[1723372558966,0.12549,156.07,156.0,20.0]
[1723372559262,0.12549,156.06,155.99,10.03988737]
[1723372559453,0.12549,156.04,155.99,10.03988737]
[1723372559647,0.25098,156.04,155.99,10.03988737]
[1723372560275,16.4123,156.03,155.98,0.8515217]
[1723372561652,16.4123,156.03,155.98,20.8515217]
[1723372561858,16.4123,156.03,155.98,0.8515217]
[1723372562169,16.4123,156.03,155.98,20.8515217]
[1723372563975,0.25098,156.02,155.98,0.8515217]
[1723372564170,0.12549,156.01,155.98,0.8515217]
[1723372565470,16.75389,155.99,155.98,0.8515217]
[1723372565771,17.00487,155.99,155.98,0.8515217]
[1723372566072,16.6284,155.99,155.98,0.8515217]
[1723372568861,17.00487,155.99,155.98,0.8515217]
[1723372569161,17.13036,155.99,155.98,0.8515217]
[1723372570251,0.12549,155.98,155.82,406.0818817]
[1723372570577,45.50196,155.98,155.85,6.28360722]
[1723372571585,0.50196,155.98,155.85,14.06634165]
[1723372571754,0.37647,155.98,155.86,27.78273443]
[1723372571960,0.25098,155.98,155.86,34.06634165]
[1723372572660,16.6284,155.99,155.87,45.50196]
[1723372572867,16.6284,155.99,155.88,27.78273443]
[1723372573183,16.6284,155.99,155.89,45.25098]
[1723372573354,16.6284,155.99,155.9,20.0]
[1723372573558,16.6284,155.99,155.91,45.0]
[1723372573869,16.6284,155.99,155.92,20.0]
[1723372574775,0.50196,155.98,155.89,20.0]
[1723372576764,0.50196,155.98,155.9,45.0]
[1723372576964,0.50196,155.98,155.91,20.0]
[1723372577863,0.50196,155.98,155.89,20.0]
[1723372578078,0.50196,155.98,155.85,20.0]
[1723372578278,0.50196,155.98,155.86,45.12549]
[1723372578471,0.50196,155.98,155.87,20.0]
[1723372578674,0.50196,155.98,155.88,45.0]
[1723372578870,16.6284,156.04,155.92,0.12549]
[1723372579069,16.6284,156.04,155.93,8.50495666]
[1723372579381,16.6284,156.04,155.94,65.50196]
[1723372579582,16.6284,156.04,155.96,0.12549]
[1723372579886,16.6284,156.04,155.96,73.50495666]
[1723372580065,16.6284,156.04,155.96,65.0]
[1723372583676,0.25098,156.03,155.96,65.0]
[1723372583874,16.6284,156.04,155.96,65.0]
[1723372585998,16.6507,156.17,155.98,16.1043]
[1723372586286,16.6507,156.17,156.0,0.12549]
[1723372586478,16.6507,156.17,156.03,0.12549]
[1723372586685,16.6507,156.17,156.05,0.12549]
[1723372586885,16.6507,156.17,156.05,35.77798589]
[1723372587067,16.6507,156.17,156.07,0.12549]
[1723372587274,16.6507,156.17,156.07,20.50196]
[1723372587483,16.6507,156.17,156.08,45.0]
[1723372587673,16.6507,156.17,156.09,20.0]
[1723372588181,16.6507,156.17,156.1,45.0]
[1723372588398,16.6507,156.17,156.11,20.0]
[1723372593790,16.6507,156.17,156.12,45.0]
[1723372595278,16.6507,156.17,156.11,20.0]
[1723372595478,16.6507,156.17,156.07,20.37647]
[1723372595781,16.6507,156.17,156.08,45.0]
[1723372596089,16.6507,156.17,156.09,20.0]
[1723372596391,16.6507,156.17,156.1,45.0]
[1723372596704,16.6507,156.17,156.11,20.0]
[1723372605886,0.25098,156.16,156.11,20.0]
[1723372606085,0.25098,156.16,156.1,45.0]
[1723372606302,0.25098,156.16,156.06,8.48686311]
[1723372606503,0.25098,156.16,156.07,65.0]
[1723372607208,0.25098,156.16,156.07,20.0]
[1723372607418,0.12549,156.15,156.06,2.58037903]
[1723372607590,0.12549,156.15,156.04,20.0]
[1723372608203,0.12549,156.15,156.04,28.86545337]
[1723372608584,0.12549,156.15,156.05,45.0]
[1723372608785,0.12549,156.15,156.06,20.0]
[1723372608986,0.12549,156.15,156.07,45.0]
[1723372609296,0.12549,156.15,156.08,20.0]
[1723372610008,0.25098,156.15,156.08,20.0]
[1723372610215,0.25098,156.14,156.07,45.0]
[1723372610922,0.12549,156.13,156.04,11.4709392]
[1723372611214,6.54719,156.12,156.05,65.0]
[1723372611697,16.39389,156.11,156.05,20.0]
[1723372612016,16.39389,156.11,156.01,20.0]
[1723372612218,0.12549,156.1,156.0,8.86545337]
[1723372612628,0.12549,156.1,156.0,11.4464739]
[1723372613707,0.25098,156.1,156.01,65.0]
[1723372613912,0.12549,156.09,156.01,65.0]
[1723372614917,0.12549,156.08,156.01,65.0]
[1723372615124,0.12549,156.08,155.95,6.78916278]
[1723372615300,0.37647,156.08,155.97,2.566691]
[1723372615499,0.12549,156.07,155.97,2.566691]
[1723372615796,0.12549,156.07,155.96,11.43221937]
[1723372616002,0.25098,156.07,155.96,11.43221937]
[1723372616203,0.25098,156.07,155.97,20.0]